Cogmind - Beta 15 @@@ ROGUE MODE // 2025.08.09 @ 19:33:05 Player: Raix Result: Destroyed by 00-W9H(R) with Subdweller Beam Cannon Performance ------------- Evolutions (0) 0 Regions Visited (3) 600 Robots Destroyed (8) 40 Value Destroyed (261) 261 Prototype IDs (0) 0 Alien Tech Used (0) 0 Bonus (-109) -109 TOTAL SCORE: 792 Bonus ------- Friendly Fire -109 Cogmind --------- Core Integrity 0/250 Matter 218/300 Energy 125/125 System Corruption 0% Temperature Cool (9) Movement Rolling (110) Location -10/Subcaves Parts ------- > --- POWER (1) -------- Light Ion Engine > --- PROPULSION (2) --- Subdweller Monowheel Subdweller Monowheel > --- UTILITY (2) ------ Large Storage Unit Subdweller Optics > --- WEAPON (2) ------- Light Assault Rifle > --- INVENTORY (15) --- Wheel Compact Wheel Medium Storage Unit Medium Matter Pod (100) Medium Matter Pod (44) Machine Analyzer Subdweller Optics Makeshift Hacking Suite Cobbler Unit Subdweller Laser Multitool Peak State ------------ > --- POWER ------------ Light Ion Engine > --- PROPULSION ------- Subdweller Monowheel Subdweller Monowheel > --- UTILITY ---------- Large Storage Unit Subdweller Optics > --- WEAPON ----------- Light Assault Rifle Battle Cannon > --- INVENTORY -------- Wheel Compact Wheel Medium Storage Unit Medium Matter Pod Medium Matter Pod Machine Analyzer Subdweller Optics Makeshift Hacking Suite Cobbler Unit Light Assault Rifle Multitool [Rating: 13] Favorites ----------- Power Light Ion Engine Engine Light Ion Engine Propulsion Wheel Wheel Wheel Utility Large Storage Unit Device Improved Heat Sink Storage Large Storage Unit Weapon Medium Laser Energy Gun Medium Laser Ballistic Gun Assault Rifle Ballistic Cannon Battle Cannon Build | -11 -10 -10 -10 ------- Run | Yrd Mat Min Sub Slots Evolved . | . . . . Power . | . . . . Propulsion . | . . . . Utility . | . . . . Weapon . | . . . . Parts Attached 21 | 6 3 4 8 Power 4 | 1 . 1 2 Engine 4 | 1 . 1 2 Core . | . . . . Reactor . | . . . . Propulsion 6 | 2 . 2 2 Treads . | . . . . Leg . | . . . . Wheel 6 | 2 . 2 2 Hover . | . . . . Flight . | . . . . Utility 5 | 1 2 1 1 Device 2 | . 1 . 1 Storage 3 | 1 1 1 . Processor . | . . . . Hackware . | . . . . Protection . | . . . . Artifact . | . . . . Weapon 6 | 2 1 . 3 Energy Gun 2 | 1 1 . . Energy Cannon . | . . . . Ballistic Gun 3 | 1 . . 2 Ballistic Cannon 1 | . . . 1 Launcher . | . . . . Special Weapon . | . . . . Impact Weapon . | . . . . Slashing Weapon . | . . . . Piercing Weapon . | . . . . Special Melee Weapon . | . . . . Unidentified Prototypes . | . . . . Parts Lost 5 | . . . 5 Power . | . . . . Propulsion 1 | . . . 1 Utility . | . . . . Weapon 4 | . . . 4 Highest Loss Streak 2 | . . . 2 To Critical Strikes . | . . . . Average Backups 12 | 1 4 10 14 Power 1 | . 1 1 1 Propulsion 3 | . . 3 3 Utility 5 | . 2 5 6 Weapon 2 | . . 1 2 Tool/Special . | . . . . Unused Backups 12 | . 1 . 11 Power . | . . . . Propulsion 2 | . . . 2 Utility 9 | . 1 . 8 Weapon . | . . . . Tool/Special 1 | . . . 1 Average Slot Usage (%) 93 | . 94 100 92 Engine 14 | . 14 14 14 Wheel 27 | . 28 28 27 Device 13 | . 8 14 14 Storage 14 | . 14 14 14 Energy Gun 11 | . 14 14 11 Ballistic Gun 10 | . 14 14 9 Peak Build Rating 13 | 6 9 10 13 Average Rating 9 | 3 7 9 9 On Entrance 6 | . 6 9 10 Naked Turns . | . . . . Heaviest Build 30 | 14 20 28 30 Greatest Support 40 | 32 32 32 40 Greatest Overweight (x) 1 | . . 1 1 Average Overweight (x) . | . . . . Largest Inventory Capacity 15 | 8 10 15 15 Average Capacity 13 | 5 9 12 15 Most Carried 15 | 5 9 12 15 Average Carried 12 | 1 4 10 14 Final Capacity 15 | 8 10 15 15 Final Carried 12 | 2 9 12 12 Class Distribution -------------------- 91% | Mutant 8% | Scavenger-Mutant Dominant Class ---------------- Mutant | -10/Materials Mutant | -10/Mines Mutant | -10/Subcaves Resources | -11 -10 -10 -10 ----------- Run | Yrd Mat Min Sub Matter Collected 744 | 242 99 40 363 Remotely . | . . . . Salvage Created 352 | . 99 25 228 Parts 24 | . 6 3 15 Haulers Intercepted . | . . . . Recyclers Shooed . | . . . . Parts Field Recycled . | . . . . Retrieved Matter . | . . . . Parts Self-Destructed 19 | . . . 19 Prevented . | . . . . Kills | -11 -10 -10 -10 ------- Run | Yrd Mat Min Sub Combat Hostiles Destroyed 8 | . 2 2 4 Guns 7 | . 2 2 3 Cannons 1 | . . . 1 Classes Destroyed 6 | . 1 1 4 Swarmer 2 | . . 2 . Grunt 2 | . 2 . . Artisan 1 | . . . 1 Cobbler 1 | . . . 1 Subdweller 4 | . . . 4 Scientist 1 | . . . 1 Best Kill Streak 2 | . 2 2 2 Combat Bots Only 2 | . 2 2 2 Max Kills in Single Turn 1 | . 1 1 1 Gunslinging . | . . . . Exploded . | . . . . Melee . | . . . . Uniques/NPCs Destroyed . | . . . . Combat | -11 -10 -10 -10 -------- Run | Yrd Mat Min Sub Hostile Shots Fired 85 | . 14 13 58 Missed 31 | . 7 3 21 Hits 54 | . 7 10 37 Projectile 54 | . 7 10 37 Critical Strikes 1 | . 1 . . Damage Taken 1035 | . 88 72 875 Core 277 | . 12 20 245 Absorbed by Shields . | . . . . Core Remaining (%) 100 | 100 . . . Volleys Fired 117 | . 8 5 104 Largest 2 | . 2 2 2 Hottest 70 | . 70 70 70 Shots Fired 183 | . 16 10 157 Gun 173 | . 16 10 147 Cannon 10 | . . . 10 Launcher . | . . . . Special . | . . . . Kinetic 102 | . 8 5 89 Thermal 76 | . 3 5 68 Explosive . | . . . . Electromagnetic 5 | . 5 . . Robot Hit Streak 16 | . 5 3 16 Robot Miss Streak 6 | . 6 3 2 Penetration Max . | . . . . Secondary Targets 1 | . 1 . . Max Gunslinging Chain 1 | . 1 . . Shots Hit Robots 82 | . 9 5 68 Core Hits 23 | . 5 2 16 Critical Kills . | . . . . Critical Parts Destroyed 1 | . . . 1 Critical Strikes 5 | . . . 5 Burn 4 | . . . 4 Destroy 1 | . . . 1 Melee Attacks . | . . . . Impact . | . . . . Slashing . | . . . . Piercing . | . . . . Sneak Attacks . | . . . . Combat Hostiles . | . . . . Follow-up Attacks . | . . . . Damage Inflicted 909 | . 114 62 733 Guns 704 | . 114 62 528 Cannons 201 | . . . 201 Explosions . | . . . . Melee . | . . . . Ramming 4 | . . . 4 Kinetic 578 | . 64 12 502 Thermal 277 | . . 50 227 Explosive . | . . . . Electromagnetic 50 | . 50 . . Impact . | . . . . Slashing . | . . . . Piercing . | . . . . Highest Corruption . | . . . . Average Corruption . | . . . . Corruption Purged . | . . . . Corruption Blocked . | . . . . Overload Shots . | . . . . Overflow Damage . | . . . . Projectiles . | . . . . Explosions . | . . . . Melee . | . . . . Knockbacks 5 | . . . 5 Impact . | . . . . Kinetic 5 | . . . 5 Secondary . | . . . . Self-Inflicted Damage 2 | . . . 2 Shots . | . . . . Rammed 1 | . . . 1 Targets Rammed 1 | . . . 1 Kicked . | . . . . Crushed . | . . . . Highest Temperature 42 | . 42 . . Average Temperature 28 | . 28 . . Received Heat Transfer 258 | . 66 . 192 Siege Activations . | . . . . Martial Activations . | . . . . Shielding Activations . | . . . . Robots Disrupted . | . . . . Combat Hostiles . | . . . . Robots Corrupted . | . . . . Combat Hostiles . | . . . . Parts Fried . | . . . . Impact Corruptions . | . . . . Robots Melted . | . . . . Combat Hostiles . | . . . . Parts Melted 2 | . . 1 1 Heat Transferred 1110 | . . 148 962 Parts Sabotaged . | . . . . Parts Stolen . | . . . . Parts Stripped . | . . . . Power Chain Reactions . | . . . . Alert | -11 -10 -10 -10 ------- Run | Yrd Mat Min Sub Maximum Alert Level . | . . . . Low Security (%) 100 | 100 100 100 . Level 1 . | . . . . Level 2 . | . . . . Level 3 . | . . . . Level 4 . | . . . . Level 5 . | . . . . High Security . | . . . . Max Security . | . . . . Peak Influence 40 | . 40 40 . Initial . | . . . . Average 10 | . 9 25 . Influence Increases 91 | . 51 40 . Destroy 0b10 Robot/C 80 | . 40 40 . Destroy Leader 10 | . 10 . . Destroy Structure 1 | . 1 . . Influence Decreases 91 | . 51 20 20 Entered New Map 11 | . . . 11 Time Decay 80 | . 51 20 9 Squads Dispatched 1 | . 1 . . Investigation . | . . . . Extermination . | . . . . Reinforcement 1 | . 1 . . Assault . | . . . . Garrison . | . . . . Intercept . | . . . . Searches Triggered . | . . . . Construction Impeded . | . . . . Haulers Reinforced . | . . . . Active Scanning Responses . | . . . . Cargo Convoy Interrupts . | . . . . Stealth | -11 -10 -10 -10 --------- Run | Yrd Mat Min Sub Distress Signals 1 | . 1 . . Communications Jammed . | . . . . Distress Signals . | . . . . Times Spotted 19 | . 8 3 8 Peak Tracking Total 5 | . 5 3 3 Tactical Retreats 1 | . . . 1 Traps | -11 -10 -10 -10 ------- Run | Yrd Mat Min Sub Traps Triggered . | . . . . Indirectly . | . . . . Trap Hack Attempts . | . . . . Triggered . | . . . . Disarmed . | . . . . Reprogrammed . | . . . . Reused . | . . . . Traps Extracted . | . . . . Installed . | . . . . Triggered . | . . . . Machines | -11 -10 -10 -10 ---------- Run | Yrd Mat Min Sub Machines Disabled . | . . . . Max in Single Turn . | . . . . Machines Repaired . | . . . . Machines Dismantled . | . . . . Machines Sabotaged . | . . . . Overloaded Fab Kills . | . . . . Hacking | -11 -10 -10 -10 --------- Run | Yrd Mat Min Sub Machines Accessed . | . . . . Terminals . | . . . . Fabricators . | . . . . Repair Stations . | . . . . Recycling Units . | . . . . Scanalyzers . | . . . . Garrison Access . | . . . . Total Hacks . | . . . . Successful . | . . . . Failed . | . . . . Catastrophic . | . . . . Database Lockouts . | . . . . Manual . | . . . . Terminals . | . . . . Fabricators . | . . . . Repair Stations . | . . . . Recycling Units . | . . . . Scanalyzers . | . . . . Garrison Access . | . . . . Terminal Hacks . | . . . . Fabricator Hacks . | . . . . Repair Station Hacks . | . . . . Recycling Unit Hacks . | . . . . Scanalyzer . | . . . . Garrison Access Hacks . | . . . . Unauthorized Hacks . | . . . . Terminals . | . . . . Fabricators . | . . . . Repair Stations . | . . . . Recycling Units . | . . . . Scanalyzers . | . . . . Garrison Access . | . . . . Data Cores Recovered . | . . . . Used . | . . . . Hacking Detections . | . . . . Full Trace Events . | . . . . Feedback Events . | . . . . Feedback Blocked . | . . . . Robot Schematics Acquired . | . . . . Robots Built . | . . . . Authchips . | . . . . Time . | . . . . Total Robot Build Rating . | . . . . Part Schematics Acquired . | . . . . Parts Built . | . . . . Authchips . | . . . . Time . | . . . . Total Part Build Rating . | . . . . Parts Repaired . | . . . . Time . | . . . . Parts Recycled . | . . . . Recycled Matter . | . . . . Retrieved Matter . | . . . . Retrieved Components . | . . . . Parts Scanalyzed . | . . . . Part Schematics Acquired . | . . . . Parts Damaged . | . . . . Bothacking | -11 -10 -10 -10 ------------ Run | Yrd Mat Min Sub Used RIF Installer . | . . . . Robots Hacked . | . . . . Non-combat . | . . . . Combat . | . . . . Robot Hacks Applied . | . . . . Relay Couplers Released . | . . . . Fabnet Peak Effective % . | . . . . Robots Rewired . | . . . . Allies Hacked . | . . . . Hacks Repelled . | . . . . Allies | -11 -10 -10 -10 -------- Run | Yrd Mat Min Sub Total Allies . | . . . . Largest Group . | . . . . Highest-Rated Group . | . . . . Highest-Rated Ally . | . . . . Total Orders . | . . . . Ally Attacks . | . . . . Total Damage . | . . . . Kills . | . . . . Allies Corrupted . | . . . . Allies Melted . | . . . . Intel | -11 -10 -10 -10 ------- Run | Yrd Mat Min Sub Active Infowar (turns) 177 | . . . 177 Optics 177 | . . . 177 Robot Analysis Total . | . . . . Derelict Logs Recovered 1 | . . . 1 Drone Launches . | . . . . Drone Recoveries . | . . . . Exploration | -11 -10 -10 -10 ------------- Run | Yrd Mat Min Sub Turns Passed 1833 | 45 219 55 1514 Spaces Moved 1024 | 38 181 33 772 Core 14 | 14 . . . Treads . | . . . . Legs . | . . . . Wheels 1010 | 24 181 33 772 Hover . | . . . . Flight . | . . . . Fastest Speed 50 | 50 100 95 95 Average Speed 96 | 81 100 96 95 Slowest Speed 120 | 100 100 100 120 Overloaded Moves . | . . . . Propulsion Burnouts . | . . . . Robots Hopped . | . . . . Potential Cave-ins . | . . . . Cave-ins Triggered . | . . . . Exploration Rate (%) 18 | 3 31 6 35 Regions Visited 3 Branch Regions 2 Pre-discovered Areas . | . . . . Known Exits Taken . | . . . . Unknown Exits Taken 3 | 1 1 1 . Scrap Searched . | . . . . Spaces Dug . | . . . . Terrain Destroyed . | . . . . Melee . | . . . . Projectile . | . . . . AOE . | . . . . Terrain Rammed . | . . . . Walls Destroyed . | . . . . Machines Disabled . | . . . . Actions | -11 -10 -10 -10 --------- Run | Yrd Mat Min Sub Total 1698 | 51 203 44 1400 Wait 484 | . . . 484 Move 1021 | 37 180 32 772 Hop . | . . . . Pick Up 34 | 8 10 3 13 Fast Attach . | . . . . Attach 13 | 6 1 . 6 Detach 1 | . . . 1 Swap 15 | . 2 4 9 Drop 12 | . 2 . 10 Fire 117 | . 8 5 104 Melee . | . . . . Ram 1 | . . . 1 Kick . | . . . . Crush . | . . . . Escape Stasis . | . . . . Rewire . | . . . . Trap . | . . . . Miscellaneous . | . . . . Route ------- -11/Scrapyard -10/Materials -10/Mines -10/Subcaves History --------- Turn | Location | Event 11 | -11/Scrapyard | Discovered new exit (range 16) 46 | -11/Scrapyard | Entered Materials 154 | -10/Materials | Discovered new exit (range 11) 265 | -10/Materials | Entered Mines 317 | -10/Mines | Build established: Mutant 318 | -10/Mines | Discovered new exit (range 3) 320 | -10/Mines | Entered Subcaves 321 | -10/Subcaves | Approached by a straggling Scientist 348 | -10/Subcaves | Shifting Twisted Machinery released Sub. Beam Cannon 1254 | -10/Subcaves | Shifting Twisted Machinery released Mak. Hacking Suite 1547 | -10/Subcaves | Ambushed by Subdwellers from Twisted Machinery 1634 | -10/Subcaves | Learned location of 1 exit from Materials 1727 | -10/Subcaves | Core integrity fell below 50% 1741 | -10/Subcaves | Core integrity fell below 20% 1834 | -10/Subcaves | Destroyed by 00-W9H(R) with Subdweller Beam Cannon Last Messages --------------- 01766_ Subatomizers dissect the Wheel. 01778_ Subatomizers dissect the Wheel, destroying it. 01780_ 0T-U4R(R) affixes Scrap Shield Fragment to Scrap Shield. 01786_ E3-HOV(R) knocked back. 01793_ Subatomizers dissect the Wheel. 01795_ E3-HOV(R) destroyed. 01802_ Acquired 11 matter. 01803_ Subatomizers dissect the Wheel. 01803_ Acquired 5 matter. 01804_ Acquired 8 matter. 01810_ 00-W9H(R): "SUBHATE!" 01810_ Acquired 4 matter. 01813_ Subatomizers dissect the Sub. Laser. 01815_ K2-OFX(R) knocked back. 01823_ K2-OFX(R) affixes Scrap Shield Fragment to Scrap Shield. 01824_ Subatomizers dissect the Sub. Laser. 01824_ K2-OFX(R) knocked back. 01825_ Lgt. Assault Rifle destroyed. 01825_ Battle Cannon destroyed. 01833_ Acquired Sub. Laser. Map ----- +----------------------------------------------------+ | ????????????????????????????????######## ##?? | | ???????????????????????????????## # #??? | | ???????????##??????????????????# # ##?? | | ???????????# ?????????????????# ## ### | | ????????????# ?#####??????????## ## # | | ?????????????# ## #######?????### | | ?????????????# "##???####&& ### | | ???????????# ## ""#?### &! ## # ### | | ???????????????# ##?# "" & ######?## | | ???????????????### #### ""## ##??????? | | ?????????????????# ## ###### #??????? | | ?????????????????# # ##???## ##??????? | | ????????########## ### #????####???????? | | ???????# ## # ##""## ### #???????????????? | | ######## #"$$"# #??##???????????????? | | #"$$"# #???????????????????? | | # ### #""?# #???????????????????? | | ??#???### #### #???????????????????? | | #######?# # ##???????????????????? | | ???# ## #### #! #####????????????????????? | | ???## ! ### ! ##??#####????????????????? | | ????#"&=* = ] #### #????????????????? | | ????## *"## # * ## #?????????????????? | | ????##&&### ## #?????????????????? | | ## # ## ## % = ###???????????????? | | ### @ % #???????????????? | | #### R & #???????????????? | | ## #?# ## #???????????????? | | ??## ""## ### R ##???????????????? | | ??# % """ ##?# ### #????????????????? | | ? " """"" #???# ##?# #?????????????? | | """"" " ##???###?? #?????????????? | | """"""" #????????# #?????????????? | | ###""" "" ##???????? #?????????????? | | ##??#"" ""####????????# ## #?????????????? | | #?????# "???????????? #? #?????????????? | | ???????# ???????????? ? #?????????????? | | ???????## "???????????? ?? #?????????????? | | #?????????#????????????? ??##?????????????? | | ????????????????????????# # ????????????????? | | ????????????????????????### ????????????????? | | ??????????????????????????## ????????????????? | | ???????????????????????????#### ???????????????? | | ???????????????????????????????## ???????????????? | | ?????????????????????????????????#???????????????? | | ?????????????????????????????????????????????????? | | ?????????????????????????????????????????????????? | | ?????????????????????????????????????????????????? | | ?????????????????????????????????????????????????? | | ?????????????????????????????????????????????????? | +----------------------------------------------------+ Best States ------------- Heat Dissipation 39 Energy Generation 10 Energy Capacity 250 Matter Stores 300 Matter Capacity 300 Sight Range 21 Terrain Scan Density 10 Evasion (%) 50 Item Schematics ----------------- None Robot Schematics ------------------ None Fabricated ------------ Nothing Repaired ---------- Nothing Alien Tech Used ----------------- None Achievements -------------- None Challenges ------------ None Game ------ Seed AssemblyBiocellInterpreter Manual? 0 Play Time 00:12:35 Cumulative 20.4 hours Start 2025.08.09 @ 19:20:51 End 2025.08.09 @ 19:33:05 Sessions 1 Manual Loads 0 Difficulty Rogue Special Mode None Game No. 29 Rogue 29 Adventurer 0 Explorer 0 Win Type - Total 0 Types 0/0/0/0/0/0/0/0/0/0 Lore% 12 Gallery% 23 Achievement% 25 Wizard Run 0 Options --------- Layout 2 ASCII 0 Keyboard 0 Movement Numpad Keybinds 0 Fullscreen 1 Font 32/SmallcapsGlow Map View 77x44 Zoom Use 0% Tactical HUD 1 Map Filters NONE Filters NONE Steam 1 RUN: 874ba857-93b0-4227-ab80-611b8e907088